[Event "*** Titled Tuesday 3|2 Blitz"]
[Site "Chess.com"]
[Date "2015.05.05"]
[Round "3"]
[White "Shankland"]
[Black "Lupul_Cenusiu"]
[Result "1-0"]
[WhiteElo "2503"]
[BlackElo "2312"]
[TimeControl "180+2"]
[EndTime "11:36:30 PDT"]
[Termination "Shankland won by resignation"]

1. d4 {[%clk 0:03:01.9]} 1... d6 {[%clk 0:03:00.5]} 2. e4 {[%clk 0:03:01.7]}
2... g6 {[%clk 0:03:01.4]} 3. c4 {[%clk 0:03:01.4]} 3... Bg7 {[%clk 0:03:02.4]}
4. Nc3 {[%clk 0:03:03]} 4... Nf6 {[%clk 0:03:03]} 5. Nf3 {[%clk 0:03:02.7]} 5...
O-O {[%clk 0:03:03.9]} 6. Be2 {[%clk 0:03:04.2]} 6... Bg4 {[%clk 0:03:04.6]} 7.
Be3 {[%clk 0:03:04.4]} 7... Nbd7 {[%clk 0:03:05.4]} 8. O-O {[%clk 0:03:04]} 8...
e5 {[%clk 0:03:05.5]} 9. d5 {[%clk 0:03:04.5]} 9... Qe7 {[%clk 0:03:01.4]} 10.
Nd2 {[%clk 0:03:04]} 10... Bxe2 {[%clk 0:03:01.3]} 11. Qxe2 {[%clk 0:03:05.9]}
11... a6 {[%clk 0:03:00.3]} 12. b4 {[%clk 0:03:05.8]} 12... Nh5 {[%clk
0:03:00.1]} 13. g3 {[%clk 0:03:04.2]} 13... Rae8 {[%clk 0:02:52.3]} 14. Rac1
{[%clk 0:03:00]} 14... Kh8 {[%clk 0:02:44.4]} 15. a4 {[%clk 0:02:32.4]} 15...
Bf6 {[%clk 0:02:23.9]} 16. Nb3 {[%clk 0:02:19.9]} 16... Bg5 {[%clk 0:02:22.9]}
17. c5 {[%clk 0:02:20.6]} 17... Bxe3 {[%clk 0:02:21.5]} 18. Qxe3 {[%clk
0:02:21.8]} 18... f5 {[%clk 0:02:19.5]} 19. c6 {[%clk 0:02:22.9]} 19... f4
{[%clk 0:02:12.4]} 20. Qd3 {[%clk 0:02:21.2]} 20... bxc6 {[%clk 0:01:59.4]} 21.
dxc6 {[%clk 0:02:22.3]} 21... Ndf6 {[%clk 0:02:00.1]} 22. b5 {[%clk 0:02:20.4]}
22... Qe6 {[%clk 0:01:57.9]} 23. Nd2 {[%clk 0:01:58.5]} 23... Qh3 {[%clk
0:01:49.6]} 24. Qf3 {[%clk 0:01:58.8]} 24... axb5 {[%clk 0:01:44.9]} 25. axb5
{[%clk 0:01:59.6]} 25... Qe6 {[%clk 0:01:31.7]} 26. Nd5 {[%clk 0:01:46.4]} 26...
Rf7 {[%clk 0:01:32.1]} 27. b6 {[%clk 0:01:39.1]} 27... cxb6 {[%clk 0:01:29]} 28.
c7 {[%clk 0:01:38.3]} 28... Rc8 {[%clk 0:01:29.9]} 29. Nc4 {[%clk 0:01:26.9]}
29... Nxd5 {[%clk 0:01:30.1]} 30. exd5 {[%clk 0:01:28]} 30... Qf6 {[%clk
0:01:31.2]} 31. g4 {[%clk 0:01:25.2]} 31... Ng7 {[%clk 0:01:31.9]} 32. Nxb6
{[%clk 0:01:23.2]} 32... Rcxc7 {[%clk 0:01:32.9]} 33. Rc6 {[%clk 0:01:24.3]}
33... h6 {[%clk 0:01:27.8]} 34. Rfc1 {[%clk 0:01:22.8]} 34... Rb7 {[%clk
0:01:26.8]} 35. Nc4 {[%clk 0:01:19]} 35... Rbd7 {[%clk 0:01:27.1]} 36. Nd2
{[%clk 0:01:20.2]} 36... Qh4 {[%clk 0:01:25.4]} 37. Ne4 {[%clk 0:01:20.1]} 37...
Ne8 {[%clk 0:01:18.5]} 38. Rc8 {[%clk 0:01:20.5]} 38... Rfe7 {[%clk 0:01:11.3]}
39. g5 {[%clk 0:00:44.1]} 39... hxg5 {[%clk 0:01:06.1]} 40. Nf6 {[%clk
0:00:44.8]} 40... g4 {[%clk 0:01:07.4]} 41. Qxg4 {[%clk 0:00:44.1]} 41... Qxf6
{[%clk 0:01:07.3]} 42. Rxe8+ {[%clk 0:00:45]} 42... Rxe8 {[%clk 0:01:08]} 43.
Qxd7 {[%clk 0:00:46.6]} 43... Re7 {[%clk 0:00:50.6]} 44. Qd8+ {[%clk 0:00:44.5]}
44... Kh7 {[%clk 0:00:51.7]} 45. Rc7 {[%clk 0:00:43.6]} 45... Qg5+ {[%clk
0:00:41.9]} 46. Kh1 {[%clk 0:00:44]} 46... Rxc7 {[%clk 0:00:42.6]} 47. Qxg5
{[%clk 0:00:44.7]} 47... f3 {[%clk 0:00:43.6]} 48. h4 {[%clk 0:00:43.4]} 48...
Rc4 {[%clk 0:00:41.2]} 49. h5 {[%clk 0:00:43.3]} 49... gxh5 {[%clk 0:00:41.5]}
50. Qxh5+ {[%clk 0:00:44.6]} 50... Kg7 {[%clk 0:00:42.8]} 51. Qxf3 {[%clk
0:00:45.5]} 51... Rd4 {[%clk 0:00:42.4]} 52. Kg2 {[%clk 0:00:42.6]} 52... Kg6
{[%clk 0:00:43]} 53. Qh3 {[%clk 0:00:41.8]} 53... Kg5 {[%clk 0:00:42.9]} 54. Qe6
{[%clk 0:00:42.6]} 54... Kf4 {[%clk 0:00:38.1]} 55. Qxd6 {[%clk 0:00:43.1]}
55... Ke4 {[%clk 0:00:39.4]} 56. f3+ {[%clk 0:00:40.2]} 1-0

[Event "*** Titled Tuesday 3|2 Blitz"]
[Site "Chess.com"]
[Date "2015.05.05"]
[Round "3"]
[White "lukas_111111"]
[Black "Aygehovit1992"]
[Result "1-0"]
[WhiteElo "2346"]
[BlackElo "2448"]
[TimeControl "180+2"]
[EndTime "11:36:38 PDT"]
[Termination "lukas_111111 won by resignation"]

1. d4 {[%clk 0:03:01.9]} 1... d6 {[%clk 0:03:00.8]} 2. e4 {[%clk 0:02:59.9]}
2... g6 {[%clk 0:03:02.5]} 3. Nf3 {[%clk 0:03:00.2]} 3... Bg7 {[%clk 0:03:04.2]}
4. Nc3 {[%clk 0:03:00.2]} 4... a6 {[%clk 0:03:05.6]} 5. a4 {[%clk 0:03:00]} 5...
b6 {[%clk 0:03:06.7]} 6. h3 {[%clk 0:03:00.4]} 6... Bb7 {[%clk 0:03:07.3]} 7.
Be3 {[%clk 0:02:58.4]} 7... Nd7 {[%clk 0:03:08.3]} 8. Bc4 {[%clk 0:02:56.7]}
8... e6 {[%clk 0:03:09.2]} 9. O-O {[%clk 0:02:56.9]} 9... Ne7 {[%clk 0:03:10.4]}
10. Bb3 {[%clk 0:02:46.2]} 10... O-O {[%clk 0:03:10.1]} 11. Qd2 {[%clk
0:02:46.2]} 11... Re8 {[%clk 0:03:05.5]} 12. Rfe1 {[%clk 0:02:41.6]} 12... c5
{[%clk 0:03:02.3]} 13. d5 {[%clk 0:02:37.4]} 13... e5 {[%clk 0:03:02.7]} 14. Bc4
{[%clk 0:02:33.8]} 14... Rf8 {[%clk 0:02:49.6]} 15. Bh6 {[%clk 0:02:24.9]} 15...
Bxh6 {[%clk 0:02:49.3]} 16. Qxh6 {[%clk 0:02:24.6]} 16... f6 {[%clk 0:02:50.9]}
17. Ne2 {[%clk 0:02:05.7]} 17... Rf7 {[%clk 0:02:51.8]} 18. Ng3 {[%clk
0:02:03.5]} 18... Qf8 {[%clk 0:02:52.8]} 19. Qd2 {[%clk 0:01:56.1]} 19... h6
{[%clk 0:02:49.9]} 20. Ra3 {[%clk 0:01:47.9]} 20... Kh7 {[%clk 0:02:49.6]} 21.
Nh4 {[%clk 0:01:43.4]} 21... Rg7 {[%clk 0:02:38.8]} 22. Bd3 {[%clk 0:01:39.5]}
22... a5 {[%clk 0:02:34.9]} 23. c4 {[%clk 0:01:40]} 23... Qh8 {[%clk 0:02:31.8]}
24. Rf1 {[%clk 0:01:38.5]} 24... Rd8 {[%clk 0:02:28.1]} 25. Bc2 {[%clk
0:01:38.9]} 25... Rf8 {[%clk 0:02:28.3]} 26. Rb3 {[%clk 0:01:33.3]} 26... Kg8
{[%clk 0:02:26.7]} 27. Rf3 {[%clk 0:01:32.1]} 27... Kf7 {[%clk 0:02:22.2]} 28.
Rb3 {[%clk 0:01:28.4]} 28... Ke8 {[%clk 0:02:23]} 29. f4 {[%clk 0:01:24.6]}
29... exf4 {[%clk 0:02:23.3]} 30. Ne2 {[%clk 0:01:15]} 30... g5 {[%clk
0:02:21.3]} 31. Nf3 {[%clk 0:01:14]} 31... Ng6 {[%clk 0:02:16.5]} 32. Nc3 {[%clk
0:01:11.2]} 32... Ba6 {[%clk 0:02:09]} 33. Bd3 {[%clk 0:00:59.8]} 33... Nge5
{[%clk 0:02:09.6]} 34. Nxe5 {[%clk 0:00:58.1]} 34... fxe5 {[%clk 0:02:10.8]} 35.
Qe2 {[%clk 0:00:50.2]} 35... h5 {[%clk 0:02:11.4]} 36. Kf2 {[%clk 0:00:33.5]}
36... g4 {[%clk 0:02:12.3]} 37. Ke1 {[%clk 0:00:34.6]} 37... gxh3 {[%clk
0:02:06.1]} 38. gxh3 {[%clk 0:00:35.4]} 38... Rg3 {[%clk 0:02:07.7]} 39. Rf3
{[%clk 0:00:34.4]} 39... h4 {[%clk 0:02:08.9]} 40. Nb5 {[%clk 0:00:30.8]} 40...
Bxb5 {[%clk 0:02:09.2]} 41. axb5 {[%clk 0:00:29.1]} 41... Rfg8 {[%clk
0:02:10.3]} 42. Bc2 {[%clk 0:00:27.1]} 42... Rxf3 {[%clk 0:02:08.9]} 43. Rxf3
{[%clk 0:00:25.9]} 43... Rg3 {[%clk 0:02:09.6]} 44. Rxg3 {[%clk 0:00:23.8]}
44... hxg3 {[%clk 0:02:09.8]} 45. Qg4 {[%clk 0:00:24.9]} 45... Qf6 {[%clk
0:02:06.3]} 46. Bd1 {[%clk 0:00:22.7]} 46... Nf8 {[%clk 0:02:06.3]} 47. Qc8+
{[%clk 0:00:20.6]} 47... Kf7 {[%clk 0:02:05.5]} 48. Qc7+ {[%clk 0:00:16]} 48...
Kg8 {[%clk 0:02:05.8]} 49. Bf3 {[%clk 0:00:15.5]} 49... Ng6 {[%clk 0:01:56.9]}
50. Qxb6 {[%clk 0:00:15.8]} 50... Nh4 {[%clk 0:01:57.8]} 51. Ke2 {[%clk
0:00:16.2]} 51... Nxf3 {[%clk 0:01:55.9]} 52. Kxf3 {[%clk 0:00:16.7]} 52... Qg6
{[%clk 0:01:57.2]} 53. Qd8+ {[%clk 0:00:17.3]} 53... Kg7 {[%clk 0:01:50.1]} 54.
Qd7+ {[%clk 0:00:18.3]} 54... Kh8 {[%clk 0:01:48.7]} 55. Qg4 {[%clk 0:00:17.5]}
55... Qf6 {[%clk 0:01:46.4]} 56. b6 {[%clk 0:00:13.6]} 56... Qd8 {[%clk
0:01:46.8]} 57. b7 {[%clk 0:00:14.6]} 57... Kh7 {[%clk 0:01:26.8]} 58. Qc8
{[%clk 0:00:12.2]} 58... Qg5 {[%clk 0:01:23.4]} 59. b8=Q {[%clk 0:00:10.1]}
59... Qh5+ {[%clk 0:01:24.5]} 60. Qg4 {[%clk 0:00:10.3]} 60... Qxg4+ {[%clk
0:01:24.8]} 61. hxg4 {[%clk 0:00:11.4]} 1-0

[Event "*** Titled Tuesday 3|2 Blitz"]
[Site "Chess.com"]
[Date "2015.05.05"]
[Round "3"]
[White "GeorgMeier"]
[Black "Tilicheev_Viacheslav"]
[Result "0-1"]
[WhiteElo "2730"]
[BlackElo "2433"]
[TimeControl "180+2"]
[EndTime "11:36:45 PDT"]
[Termination "Tilicheev_Viacheslav won by resignation"]

1. Nf3 {[%clk 0:02:24.7]} 1... d5 {[%clk 0:03:00.4]} 2. g3 {[%clk 0:02:26]} 2...
Nc6 {[%clk 0:03:01.4]} 3. d4 {[%clk 0:02:26.2]} 3... Bg4 {[%clk 0:02:58.3]} 4.
Bg2 {[%clk 0:02:27.6]} 4... Qd7 {[%clk 0:02:59.6]} 5. h3 {[%clk 0:02:28.3]} 5...
Bxf3 {[%clk 0:02:59.9]} 6. exf3 {[%clk 0:02:29.6]} 6... O-O-O {[%clk 0:03:01.5]}
7. f4 {[%clk 0:02:30.6]} 7... e6 {[%clk 0:03:02.3]} 8. c3 {[%clk 0:02:31.6]}
8... h5 {[%clk 0:03:02.8]} 9. Nd2 {[%clk 0:02:23.7]} 9... Nge7 {[%clk
0:03:03.9]} 10. Nf3 {[%clk 0:02:24.4]} 10... f6 {[%clk 0:02:52.7]} 11. Qe2
{[%clk 0:02:22.3]} 11... Nf5 {[%clk 0:02:50.2]} 12. O-O {[%clk 0:02:20.5]} 12...
h4 {[%clk 0:02:44.2]} 13. g4 {[%clk 0:02:21.3]} 13... Nd6 {[%clk 0:02:45.6]} 14.
Re1 {[%clk 0:02:11.6]} 14... Re8 {[%clk 0:02:42.6]} 15. a4 {[%clk 0:02:05.9]}
15... g6 {[%clk 0:02:22.2]} 16. Be3 {[%clk 0:02:00.3]} 16... Bg7 {[%clk
0:02:22.6]} 17. Rad1 {[%clk 0:01:53.9]} 17... Kb8 {[%clk 0:02:22.9]} 18. b4
{[%clk 0:01:50.4]} 18... Ne4 {[%clk 0:02:21.2]} 19. Qc2 {[%clk 0:01:50.8]} 19...
f5 {[%clk 0:02:19.2]} 20. g5 {[%clk 0:01:39.8]} 20... Rc8 {[%clk 0:02:02]} 21.
Ra1 {[%clk 0:01:40.6]} 21... Ne7 {[%clk 0:01:56.9]} 22. Reb1 {[%clk 0:01:40.7]}
22... Ka8 {[%clk 0:01:48.7]} 23. Rb3 {[%clk 0:01:38.3]} 23... Kb8 {[%clk
0:01:44.6]} 24. Bf1 {[%clk 0:01:12.1]} 24... c6 {[%clk 0:01:32.6]} 25. Rab1
{[%clk 0:01:07.8]} 25... Ka8 {[%clk 0:01:31]} 26. Bd3 {[%clk 0:01:08.8]} 26...
Rc7 {[%clk 0:01:17.8]} 27. Qe2 {[%clk 0:01:09.3]} 27... Rcc8 {[%clk 0:01:18.5]}
28. R1b2 {[%clk 0:00:54.2]} 28... Rc7 {[%clk 0:01:18.1]} 29. Qe1 {[%clk
0:00:54.2]} 29... Rcc8 {[%clk 0:01:18.4]} 30. Qb1 {[%clk 0:00:53.9]} 30... Rc7
{[%clk 0:01:15.4]} 31. c4 {[%clk 0:00:48.5]} 31... dxc4 {[%clk 0:01:12]} 32.
Bxc4 {[%clk 0:00:50.4]} 32... Nd5 {[%clk 0:01:11.6]} 33. Bd3 {[%clk 0:00:51.6]}
33... Nec3 {[%clk 0:01:07.5]} 34. Qa1 {[%clk 0:00:50.9]} 34... Qf7 {[%clk
0:00:58.3]} 35. Bc4 {[%clk 0:00:47.4]} 35... Ne4 {[%clk 0:00:42.9]} 36. Rc2
{[%clk 0:00:46.1]} 36... Qd7 {[%clk 0:00:41.1]} 37. Qc1 {[%clk 0:00:46]} 37...
Qd6 {[%clk 0:00:34.2]} 38. Qb1 {[%clk 0:00:29.6]} 38... Nxf4 {[%clk 0:00:32.3]}
39. Bf1 {[%clk 0:00:28]} 39... Nd5 {[%clk 0:00:28.2]} 40. b5 {[%clk 0:00:29.4]}
40... cxb5 {[%clk 0:00:24.8]} 41. Rxc7 {[%clk 0:00:29.5]} 41... Qxc7 {[%clk
0:00:26]} 42. axb5 {[%clk 0:00:29.6]} 42... Kb8 {[%clk 0:00:25.6]} 43. Ra3
{[%clk 0:00:25.4]} 43... Nxe3 {[%clk 0:00:23.5]} 44. Rxe3 {[%clk 0:00:26.1]}
44... Qf4 {[%clk 0:00:23.2]} 45. Bg2 {[%clk 0:00:24.8]} 45... Rc8 {[%clk
0:00:23.3]} 46. Re1 {[%clk 0:00:21.4]} 46... Bxd4 {[%clk 0:00:21.6]} 47. Rxe4
{[%clk 0:00:22.1]} 47... fxe4 {[%clk 0:00:19.2]} 48. Nxd4 {[%clk 0:00:22.8]}
48... Rc1+ {[%clk 0:00:20.1]} 0-1

[Event "*** Titled Tuesday 3|2 Blitz"]
[Site "Chess.com"]
[Date "2015.05.05"]
[Round "3"]
[White "destroyer305"]
[Black "DanielRensch"]
[Result "0-1"]
[WhiteElo "2141"]
[BlackElo "2270"]
[TimeControl "180+2"]
[EndTime "11:36:57 PDT"]
[Termination "DanielRensch won by resignation"]

1. e4 {[%clk 0:03:01.9]} 1... c5 {[%clk 0:03:00.7]} 2. d4 {[%clk 0:03:02.1]}
2... cxd4 {[%clk 0:03:01.1]} 3. c3 {[%clk 0:03:04]} 3... dxc3 {[%clk 0:03:03]}
4. Nxc3 {[%clk 0:03:05.9]} 4... d6 {[%clk 0:03:04.1]} 5. Nf3 {[%clk 0:03:07.4]}
5... e6 {[%clk 0:03:05.3]} 6. Bc4 {[%clk 0:03:08.9]} 6... a6 {[%clk 0:03:06.4]}
7. O-O {[%clk 0:03:10.2]} 7... Ne7 {[%clk 0:03:08]} 8. Qe2 {[%clk 0:03:11.4]}
8... Ng6 {[%clk 0:03:09]} 9. Rd1 {[%clk 0:03:12.6]} 9... Be7 {[%clk 0:03:10.2]}
10. a4 {[%clk 0:03:09.2]} 10... O-O {[%clk 0:03:11.2]} 11. Be3 {[%clk
0:03:08.1]} 11... Nc6 {[%clk 0:03:09.6]} 12. Rac1 {[%clk 0:03:06.7]} 12... Bd7
{[%clk 0:03:10.2]} 13. Ba2 {[%clk 0:03:07.6]} 13... Rc8 {[%clk 0:03:10.8]} 14.
Bb1 {[%clk 0:03:08.6]} 14... Re8 {[%clk 0:03:10.3]} 15. Nd4 {[%clk 0:03:05.1]}
15... Bg5 {[%clk 0:03:04.5]} 16. Nb3 {[%clk 0:02:51.3]} 16... Bxe3 {[%clk
0:02:50.5]} 17. Qxe3 {[%clk 0:02:53.2]} 17... Qe7 {[%clk 0:02:45]} 18. Qg3
{[%clk 0:02:48.6]} 18... Nce5 {[%clk 0:02:39.6]} 19. f4 {[%clk 0:02:48.8]} 19...
Nc4 {[%clk 0:02:38.2]} 20. Rf1 {[%clk 0:02:28]} 20... Nxb2 {[%clk 0:02:33]} 21.
f5 {[%clk 0:02:26.7]} 21... exf5 {[%clk 0:02:25.8]} 22. exf5 {[%clk 0:02:26.6]}
22... Nf8 {[%clk 0:02:24]} 23. Nd5 {[%clk 0:02:22.3]} 23... Qe5 {[%clk
0:02:24.6]} 24. Rxc8 {[%clk 0:02:20.1]} 24... Bxc8 {[%clk 0:02:21.6]} 25. f6
{[%clk 0:01:55.3]} 25... Qxg3 {[%clk 0:02:18.6]} 26. hxg3 {[%clk 0:01:57.2]}
26... Be6 {[%clk 0:02:10.1]} 27. Be4 {[%clk 0:01:39.6]} 27... Bxd5 {[%clk
0:02:06.9]} 28. Bxd5 {[%clk 0:01:41.5]} 28... gxf6 {[%clk 0:02:06.3]} 29. Rxf6
{[%clk 0:01:41.2]} 29... Ne6 {[%clk 0:02:07]} 30. Bxb7 {[%clk 0:01:40.1]} 30...
Nxa4 {[%clk 0:01:54.4]} 31. Bxa6 {[%clk 0:01:38.9]} 31... Kg7 {[%clk 0:01:50]}
32. Rf2 {[%clk 0:01:33.9]} 32... Nac5 {[%clk 0:01:42.7]} 33. Bc4 {[%clk
0:01:30.4]} 33... Ne4 {[%clk 0:01:35.5]} 34. Ra2 {[%clk 0:01:27.5]} 34... Nxg3
{[%clk 0:01:32.5]} 35. Ra7 {[%clk 0:01:25.7]} 35... Nf5 {[%clk 0:01:30.9]} 36.
Nd2 {[%clk 0:01:23.9]} 36... Re7 {[%clk 0:01:12.7]} 37. Ra8 {[%clk 0:01:18.2]}
37... Nc5 {[%clk 0:01:09.2]} 38. Nf3 {[%clk 0:01:17.9]} 38... Ne3 {[%clk
0:01:07.9]} 39. Ba2 {[%clk 0:01:15]} 39... Ne4 {[%clk 0:00:56.7]} 40. Nd4 {[%clk
0:01:15.6]} 40... Rc7 {[%clk 0:00:52.2]} 41. Ra3 {[%clk 0:01:00]} 41... Rc1+
{[%clk 0:00:46.6]} 42. Kh2 {[%clk 0:01:00.7]} 42... Ng4+ {[%clk 0:00:44.1]} 43.
Kh3 {[%clk 0:01:02]} 43... h5 {[%clk 0:00:43.2]} 44. Kh4 {[%clk 0:00:56.9]}
44... Kg6 {[%clk 0:00:29.1]} 45. Rf3 {[%clk 0:00:47.1]} 45... f6 {[%clk
0:00:22.1]} 46. Ne2 {[%clk 0:00:44.4]} 46... Rc2 {[%clk 0:00:20.1]} 47. Nf4+
{[%clk 0:00:45]} 47... Kh6 {[%clk 0:00:20.3]} 48. Bb1 {[%clk 0:00:43.1]} 48...
Rc4 {[%clk 0:00:14.5]} 49. Nxh5 {[%clk 0:00:41.3]} 49... Ng5 {[%clk 0:00:15.2]}
50. Nf4 {[%clk 0:00:41.7]} 50... Nxf3+ {[%clk 0:00:15.7]} 51. gxf3 {[%clk
0:00:43.1]} 51... Rxf4 {[%clk 0:00:16.8]} 52. fxg4 {[%clk 0:00:44.8]} 52... Rb4
{[%clk 0:00:17.8]} 53. Bf5 {[%clk 0:00:44.6]} 53... d5 {[%clk 0:00:18.9]} 54.
Kg3 {[%clk 0:00:45.1]} 54... Kg5 {[%clk 0:00:20.8]} 55. Kf3 {[%clk 0:00:46.4]}
55... Rb3+ {[%clk 0:00:22.2]} 56. Ke2 {[%clk 0:00:47.2]} 56... Kf4 {[%clk
0:00:23.7]} 57. Kd2 {[%clk 0:00:47.9]} 57... Re3 {[%clk 0:00:25.2]} 58. Be6
{[%clk 0:00:47.6]} 58... Rxe6 {[%clk 0:00:25.9]} 0-1

[Event "*** Titled Tuesday 3|2 Blitz"]
[Site "Chess.com"]
[Date "2015.05.05"]
[Round "3"]
[White "GMHess"]
[Black "bugsbunny444"]
[Result "1-0"]
[WhiteElo "2522"]
[BlackElo "2309"]
[TimeControl "180+2"]
[EndTime "11:36:59 PDT"]
[Termination "GMHess won by resignation"]

1. b3 {[%clk 0:03:01.9]} 1... d5 {[%clk 0:02:59.3]} 2. Bb2 {[%clk 0:03:02.5]}
2... Nf6 {[%clk 0:02:59.3]} 3. Nf3 {[%clk 0:03:03.6]} 3... e6 {[%clk 0:03:00.2]}
4. e3 {[%clk 0:03:04.3]} 4... Be7 {[%clk 0:03:00.9]} 5. c4 {[%clk 0:03:03.4]}
5... O-O {[%clk 0:03:01.9]} 6. Be2 {[%clk 0:03:03]} 6... b6 {[%clk 0:03:02.8]}
7. O-O {[%clk 0:03:02.6]} 7... Bb7 {[%clk 0:03:04.1]} 8. Nc3 {[%clk 0:03:04.1]}
8... c5 {[%clk 0:02:44]} 9. cxd5 {[%clk 0:03:03.9]} 9... Nxd5 {[%clk 0:02:43.6]}
10. Nxd5 {[%clk 0:03:02.6]} 10... Qxd5 {[%clk 0:02:40.9]} 11. Qc2 {[%clk
0:02:43.9]} 11... Nd7 {[%clk 0:02:33]} 12. Rac1 {[%clk 0:02:31.4]} 12... Rac8
{[%clk 0:02:26.6]} 13. Rfd1 {[%clk 0:02:26.8]} 13... Bf6 {[%clk 0:02:18]} 14.
Bc3 {[%clk 0:02:15.9]} 14... Rfd8 {[%clk 0:02:10.4]} 15. h3 {[%clk 0:01:53.6]}
15... h6 {[%clk 0:01:51.7]} 16. Ne1 {[%clk 0:01:37.8]} 16... e5 {[%clk
0:01:09.2]} 17. d3 {[%clk 0:01:23.7]} 17... e4 {[%clk 0:00:47.8]} 18. dxe4
{[%clk 0:01:24.5]} 18... Qxe4 {[%clk 0:00:49]} 19. Qxe4 {[%clk 0:01:22.5]} 19...
Bxe4 {[%clk 0:00:50]} 20. Ba6 {[%clk 0:00:56.4]} 20... Rb8 {[%clk 0:00:38.6]}
21. f3 {[%clk 0:00:37.9]} 21... Bc6 {[%clk 0:00:21]} 22. Rd6 {[%clk 0:00:37.6]}
22... Bxc3 {[%clk 0:00:18.3]} 23. Rxc3 {[%clk 0:00:34]} 23... Ne5 {[%clk
0:00:19.2]} 24. Rxd8+ {[%clk 0:00:31.6]} 24... Rxd8 {[%clk 0:00:21.1]} 25. f4
{[%clk 0:00:27.7]} 25... Rd1 {[%clk 0:00:15.9]} 26. Kf2 {[%clk 0:00:26.1]} 26...
Rd2+ {[%clk 0:00:17.1]} 27. Be2 {[%clk 0:00:23.8]} 27... Bb5 {[%clk 0:00:12.8]}
28. Rc2 {[%clk 0:00:21.6]} 28... Rxc2 {[%clk 0:00:07.3]} 29. Nxc2 {[%clk
0:00:23.5]} 29... Bxe2 {[%clk 0:00:05.8]} 30. Kxe2 {[%clk 0:00:23.9]} 30... Nc6
{[%clk 0:00:06]} 31. Kd3 {[%clk 0:00:24.8]} 31... Kf8 {[%clk 0:00:06.4]} 32. Kc4
{[%clk 0:00:25.9]} 32... Ke7 {[%clk 0:00:08]} 33. Kb5 {[%clk 0:00:26.9]} 33...
Kd6 {[%clk 0:00:07.8]} 34. e4 {[%clk 0:00:24.9]} 34... Kc7 {[%clk 0:00:07]} 35.
Kc4 {[%clk 0:00:26.1]} 35... f6 {[%clk 0:00:05.4]} 36. Ne3 {[%clk 0:00:27]}
36... Ne7 {[%clk 0:00:04.2]} 37. g4 {[%clk 0:00:25.2]} 37... Kd6 {[%clk
0:00:04.8]} 38. Kb5 {[%clk 0:00:24.3]} 38... Kc7 {[%clk 0:00:02.6]} 39. Ka6
{[%clk 0:00:24.9]} 39... Nc6 {[%clk 0:00:02.3]} 40. Nf5 {[%clk 0:00:22.6]} 40...
Nb4+ {[%clk 0:00:03.8]} 41. Kxa7 {[%clk 0:00:23.2]} 41... Nxa2 {[%clk
0:00:05.7]} 42. Nxg7 {[%clk 0:00:24.6]} 42... b5 {[%clk 0:00:03.8]} 43. Ne8+
{[%clk 0:00:25.5]} 43... Kc6 {[%clk 0:00:05]} 44. Nxf6 {[%clk 0:00:27.2]} 44...
c4 {[%clk 0:00:04.9]} 45. bxc4 {[%clk 0:00:29.1]} 45... bxc4 {[%clk 0:00:06.3]}
46. Nd5 {[%clk 0:00:27.7]} 46... c3 {[%clk 0:00:06.3]} 47. Ne3 {[%clk 0:00:29]}
47... Nb4 {[%clk 0:00:06.8]} 48. h4 {[%clk 0:00:27.5]} 48... c2 {[%clk
0:00:07.6]} 49. Nxc2 {[%clk 0:00:28.8]} 49... Nxc2 {[%clk 0:00:09.1]} 50. g5
{[%clk 0:00:28.1]} 50... h5 {[%clk 0:00:09.1]} 51. g6 {[%clk 0:00:27.4]} 51...
Nd4 {[%clk 0:00:05.9]} 52. g7 {[%clk 0:00:28.4]} 52... Nb5+ {[%clk 0:00:05.1]}
53. Kb8 {[%clk 0:00:29.1]} 1-0

[Event "*** Titled Tuesday 3|2 Blitz"]
[Site "Chess.com"]
[Date "2015.05.05"]
[Round "3"]
[White "salomez"]
[Black "facu57"]
[Result "0-1"]
[WhiteElo "2133"]
[BlackElo "2150"]
[TimeControl "180+2"]
[EndTime "11:37:06 PDT"]
[Termination "facu57 won by resignation"]

1. e4 {[%clk 0:03:01.9]} 1... c6 {[%clk 0:03:00.7]} 2. d4 {[%clk 0:03:02.4]}
2... d5 {[%clk 0:03:01]} 3. e5 {[%clk 0:03:03.2]} 3... e6 {[%clk 0:02:59.6]} 4.
Nf3 {[%clk 0:03:00.7]} 4... c5 {[%clk 0:01:26.6]} 5. Bb5+ {[%clk 0:02:47.7]}
5... Nc6 {[%clk 0:01:28.5]} 6. O-O {[%clk 0:02:43.2]} 6... Bd7 {[%clk
0:01:28.8]} 7. c4 {[%clk 0:02:31.1]} 7... Nxd4 {[%clk 0:01:28]} 8. Nxd4 {[%clk
0:02:28.4]} 8... cxd4 {[%clk 0:01:29.1]} 9. Bxd7+ {[%clk 0:02:27.7]} 9... Qxd7
{[%clk 0:01:30.1]} 10. Qxd4 {[%clk 0:02:27.7]} 10... Ne7 {[%clk 0:01:30]} 11.
Nc3 {[%clk 0:02:20.8]} 11... Nc6 {[%clk 0:01:29]} 12. Qf4 {[%clk 0:02:05.5]}
12... d4 {[%clk 0:01:29.8]} 13. Ne4 {[%clk 0:02:01.3]} 13... Qc7 {[%clk
0:01:27.9]} 14. Nd6+ {[%clk 0:02:00.9]} 14... Bxd6 {[%clk 0:01:28.3]} 15. exd6
{[%clk 0:02:02.2]} 15... Qd7 {[%clk 0:01:28.8]} 16. c5 {[%clk 0:02:01.9]} 16...
O-O {[%clk 0:01:26.3]} 17. Bd2 {[%clk 0:02:00.4]} 17... e5 {[%clk 0:01:27.2]}
18. Qf3 {[%clk 0:01:46.7]} 18... a5 {[%clk 0:01:27.8]} 19. b3 {[%clk 0:01:31.1]}
19... Rfe8 {[%clk 0:01:28]} 20. Qd5 {[%clk 0:01:29.6]} 20... Qe6 {[%clk
0:01:16.1]} 21. Qxe6 {[%clk 0:01:20.9]} 21... Rxe6 {[%clk 0:01:16.4]} 22. a3
{[%clk 0:01:21.8]} 22... b6 {[%clk 0:01:15.7]} 23. b4 {[%clk 0:01:20.7]} 23...
bxc5 {[%clk 0:01:16.3]} 24. bxc5 {[%clk 0:01:21.4]} 24... f5 {[%clk 0:01:16.1]}
25. Rab1 {[%clk 0:01:14.4]} 25... e4 {[%clk 0:01:17]} 26. Rb6 {[%clk 0:01:13.8]}
26... Ne5 {[%clk 0:01:18.1]} 27. Bf4 {[%clk 0:01:02.1]} 27... Nd3 {[%clk
0:01:17]} 28. c6 {[%clk 0:00:32.9]} 28... Nxf4 {[%clk 0:01:02.1]} 29. c7 {[%clk
0:00:33.8]} 29... Nd5 {[%clk 0:00:53.6]} 30. Rb8+ {[%clk 0:00:32.3]} 30... Re8
{[%clk 0:00:54.4]} 31. Rfb1 {[%clk 0:00:20.7]} 31... Kf7 {[%clk 0:00:41.5]} 32.
Rxa8 {[%clk 0:00:17.9]} 32... Rxa8 {[%clk 0:00:41.5]} 33. Rb8 {[%clk 0:00:16.6]}
33... d3 {[%clk 0:00:38.3]} 34. Kf1 {[%clk 0:00:16.5]} 34... Nc3 {[%clk
0:00:34.4]} 35. Ke1 {[%clk 0:00:16.3]} 35... Ra6 {[%clk 0:00:23.9]} 36. c8=Q
{[%clk 0:00:16.7]} 36... Rxd6 {[%clk 0:00:24.8]} 37. Qf8+ {[%clk 0:00:15.6]}
37... Ke6 {[%clk 0:00:25.3]} 38. Re8+ {[%clk 0:00:15.6]} 38... Kd5 {[%clk
0:00:26.2]} 39. Qxf5+ {[%clk 0:00:15.9]} 39... Kd4 {[%clk 0:00:24.3]} 40. Kd2
{[%clk 0:00:09.3]} 40... Nb1+ {[%clk 0:00:21.3]} 41. Kd1 {[%clk 0:00:10.1]}
41... Nc3+ {[%clk 0:00:21.7]} 42. Kc1 {[%clk 0:00:09.7]} 42... Rd5 {[%clk
0:00:21.8]} 43. Qf4 {[%clk 0:00:07]} 43... Ne2+ {[%clk 0:00:22.8]} 44. Kd2
{[%clk 0:00:07]} 44... Nxf4 {[%clk 0:00:24.7]} 45. g3 {[%clk 0:00:07.4]} 45...
Ng6 {[%clk 0:00:23.8]} 46. Rb8 {[%clk 0:00:06.3]} 46... Ne5 {[%clk 0:00:24.7]}
47. Rb3 {[%clk 0:00:06]} 47... Nc4+ {[%clk 0:00:25.6]} 48. Kd1 {[%clk
0:00:06.7]} 48... Rf5 {[%clk 0:00:26.6]} 49. Ke1 {[%clk 0:00:05.9]} 49... d2+
{[%clk 0:00:26.8]} 50. Ke2 {[%clk 0:00:06.2]} 50... Rxf2+ {[%clk 0:00:27.9]} 51.
Kxf2 {[%clk 0:00:06.5]} 51... d1=Q {[%clk 0:00:28.9]} 0-1